bitfinex-derivatives/quotes_ETHF0:USTF0_20250503
["timestamp","ask_amount","ask_price","bid_price","bid_amount"]
[1746293109166,6.03193765,1818.5,1818.4,9.78543]
[1746293109358,6.03193765,1818.5,1818.4,11.44563]
[1746293110265,7.13146765,1818.5,1818.4,7.0868]
[1746293110468,7.13146765,1818.5,1818.3,4.9786]
[1746293110663,2.02503449,1818.4,1818.3,4.9786]
[1746293111166,5.74303449,1818.4,1818.3,6.6388]
[1746293113162,5.74241792,1818.4,1818.3,6.6388]
[1746293113360,5.74243714,1818.4,1818.3,6.6388]
[1746293114959,6.0175403,1818.4,1818.3,6.6388]
[1746293118365,6.01717396,1818.4,1818.3,6.6388]
[1746293118576,6.01717699,1818.4,1818.3,4.9786]
[1746293120375,6.01700158,1818.4,1818.3,4.9786]
[1746293122162,7.11658473,1818.4,1818.3,4.9786]
[1746293123971,7.116578,1818.4,1818.3,4.9786]
[1746293124270,7.116578,1818.4,1818.0,4.8076]
[1746293124271,1.09965,1818.3,1818.0,4.8076]
[1746293124472,4.50935316,1818.3,1818.2,3.879]
[1746293124670,4.84334341,1818.3,1818.2,3.879]
[1746293124867,1.09971,1818.2,1818.1,1.09974]
[1746293125174,3.16498477,1818.2,1818.1,4.97874]
[1746293125372,3.718,1818.3,1818.2,1.09971]
[1746293125673,3.718,1818.3,1818.2,2.63401]
[1746293125876,3.718,1818.3,1818.2,4.31171]
[1746293126769,3.61795463,1818.6,1818.5,1.09953]
[1746293126973,3.61795463,1818.6,1818.5,4.97953]
[1746293127475,3.61795463,1818.6,1818.5,8.19153]
[1746293129477,2.03370316,1818.8,1818.7,1.09941]
[1746293129978,2.03370316,1818.8,1818.7,2.66101]
[1746293130274,5.75170316,1818.8,1818.7,2.66101]
[1746293131080,3.718,1818.8,1818.7,2.66101]
[1746293131579,3.718,1818.8,1818.7,4.29251]
[1746293133188,1.76480316,1818.9,1818.8,1.09935]
[1746293133376,1.76480316,1818.9,1818.8,6.59485]
[1746293134090,5.81686777,1818.9,1818.8,6.59485]
[1746293134283,3.99310316,1818.9,1818.8,6.59485]
[1746293135791,3.99310316,1818.9,1818.8,8.17375]
[1746293142088,3.718,1818.9,1818.8,11.38155]
[1746293142593,3.718,1818.9,1818.8,16.38155]
[1746293142798,3.718,1818.9,1818.8,22.29355]
[1746293143191,0.27510316,1819.2,1819.1,1.09916]
[1746293143393,0.27510316,1819.2,1819.1,4.96316]
[1746293143792,0.27510316,1819.2,1819.1,6.66466]
[1746293144192,3.99310316,1819.2,1819.1,6.66466]
[1746293144694,3.99310316,1819.2,1819.1,8.25786]
[1746293147792,3.99310316,1819.2,1819.0,9.1198]
[1746293148000,1.6162,1819.1,1819.0,10.87421]
[1746293148192,5.3342,1819.1,1819.0,10.87421]
[1746293148599,5.3342,1819.1,1819.0,4.96221]
[1746293148997,5.60930316,1819.1,1819.0,4.96221]
[1746293155204,5.94378224,1819.1,1819.0,4.96221]
[1746293155500,5.94378164,1819.1,1819.0,4.96221]
[1746293155802,5.60930316,1819.1,1819.0,4.96221]
[1746293157698,10.25099141,1819.1,1818.7,5.912]
[1746293158005,5.05259825,1819.0,1818.9,1.09926]
[1746293158197,8.77059825,1819.0,1818.9,1.09926]
[1746293159506,6.8648,1819.0,1818.9,2.69446]
[1746293159699,5.2019,1819.0,1818.9,2.69446]
[1746293160809,3.718,1819.0,1818.9,2.69446]
[1746293162208,3.46510316,1819.2,1819.1,1.09916]
[1746293162407,3.19,1819.2,1819.1,4.94716]
[1746293162905,1.6369,1819.2,1819.1,4.94716]
[1746293163207,1.88300316,1819.3,1819.2,1.0991]
[1746293163402,1.88300316,1819.3,1819.2,4.3075]
[1746293163808,3.2448,1819.3,1819.2,4.3075]
[1746293164109,6.9628,1819.3,1819.2,4.3075]
[1746293165303,6.9628,1819.3,1819.2,1.0991]
[1746293165304,7.2977039,1819.3,1819.2,1.0991]
[1746293165605,10.78060706,1819.3,1819.0,3.848]
[1746293165806,2.0759039,1819.2,1819.1,1.09914]
[1746293166004,2.0758528,1819.2,1819.1,1.09914]
[1746293166199,5.7938528,1819.2,1819.1,1.09914]
[1746293169511,5.79391915,1819.2,1819.1,1.09914]
[1746293172808,5.459,1819.2,1819.1,1.09914]
[1746293173009,5.79385099,1819.2,1819.1,1.09914]
[1746293173512,5.79384555,1819.2,1819.1,1.09914]
[1746293173713,7.16804871,1819.2,1819.1,1.09914]
[1746293174716,7.16798618,1819.2,1819.0,3.848]
[1746293174906,1.92538302,1819.1,1819.0,4.94723]
[1746293175109,5.64349216,1819.1,1819.0,4.94723]
[1746293175608,5.64349216,1819.1,1819.0,1.09923]
[1746293175815,5.64350239,1819.1,1819.0,1.09923]
[1746293176517,6.74266239,1819.1,1819.0,1.09923]
[1746293176910,5.64350239,1819.1,1819.0,1.09923]
[1746293177716,6.74266239,1819.1,1819.0,1.09923]
[1746293177917,1.09923,1819.0,1818.9,4.94724]
[1746293178217,8.76900239,1819.0,1818.9,4.94724]
[1746293178417,9.04410555,1819.0,1818.9,4.94724]
[1746293178920,7.47380555,1819.0,1818.9,4.94724]
[1746293179314,4.05290239,1819.0,1818.9,4.94724]
[1746293179711,4.05290239,1819.0,1818.9,6.50234]
[1746293179915,3.718,1819.0,1818.9,6.50234]
[1746293181723,3.718,1819.0,1818.9,9.71014]
[1746293182223,3.61795463,1819.2,1819.1,1.09916]
[1746293182523,3.95287662,1819.2,1819.1,1.09916]
[1746293183123,7.67087662,1819.2,1819.1,1.09916]
[1746293183417,7.67090117,1819.2,1819.1,2.70766]
[1746293183824,7.33595463,1819.2,1819.1,2.70766]
[1746293184216,3.718,1819.2,1819.1,2.70766]
[1746293186423,3.718,1819.2,1819.1,5.91546]
[1746293189821,3.718,1819.2,1819.1,9.74946]
[1746293190021,3.718,1819.2,1819.1,5.91546]
[1746293190228,3.718,1819.2,1819.1,9.74946]
[1746293193125,0.27510316,1819.4,1819.1,8.6503]
[1746293193328,0.27510316,1819.4,1819.3,1.09904]
[1746293193824,0.27510316,1819.4,1819.3,2.70564]
[1746293194128,3.99310316,1819.4,1819.3,2.70564]
[1746293195227,3.99310316,1819.4,1819.3,5.91344]
[1746293197130,0.27510316,1819.4,1819.3,5.91344]
[1746293198127,0.27510316,1819.5,1819.3,5.91344]
[1746293198333,0.27510316,1819.5,1819.4,8.11718]
[1746293199133,3.99310316,1819.5,1819.4,8.11718]
[1746293200029,3.718,1819.5,1819.4,8.11718]
[1746293200230,0.27510316,1819.6,1819.5,1.09892]
[1746293200429,0.27510316,1819.6,1819.5,2.79562]
[1746293201129,0.27510316,1819.6,1819.5,1.09892]
[1746293201130,7.10410316,1819.6,1819.5,1.09892]
[1746293202533,7.43825721,1819.6,1819.5,1.09892]
[1746293202731,13.53716721,1819.6,1819.3,10.21881]
[1746293202932,7.815468,1819.5,1819.3,10.84401]
[1746293203134,1.95252159,1819.4,1819.3,7.01101]
[1746293203339,1.95252159,1819.4,1819.3,10.84401]
[1746293204036,1.95255713,1819.4,1819.3,10.84401]
[1746293204230,5.67055713,1819.4,1819.3,10.84401]
[1746293204430,5.67055713,1819.4,1819.3,4.93201]
[1746293204629,5.94566029,1819.4,1819.3,4.93201]
[1746293206034,5.9457711,1819.4,1819.3,4.93201]
[1746293209338,5.94602528,1819.4,1819.3,4.93201]
[1746293211033,3.02274316,1819.3,1819.0,3.2078]
[1746293211236,3.02274316,1819.3,1819.0,1.09923]
[1746293211237,3.2078,1819.1,1819.0,1.09923]
[1746293211438,3.54232212,1819.1,1819.0,1.09923]
[1746293211635,6.66752212,1819.1,1819.0,1.09923]
[1746293212237,11.48472212,1819.1,1818.9,4.93224]
[1746293212434,1.95592212,1819.0,1818.9,4.93224]
[1746293212738,1.95566703,1819.0,1818.9,4.93224]
[1746293213235,5.67366703,1819.0,1818.9,4.93224]
[1746293213738,3.718,1819.0,1818.9,11.42734]
[1746293214139,3.1382,1819.2,1819.1,1.09916]
[1746293215139,6.8562,1819.2,1819.1,1.09916]
[1746293215340,10.47415463,1819.2,1819.1,1.09916]
[1746293218043,6.8562,1819.2,1819.1,1.09916]
[1746293219635,3.718,1819.2,1819.1,1.09916]
[1746293220541,5.4039,1819.2,1819.1,1.09916]
[1746293222441,3.99310316,1819.2,1819.1,4.30696]
[1746293224342,3.718,1819.2,1819.1,4.30696]
[1746293225245,0.00634778,1819.4,1819.3,1.09904]
[1746293225448,0.00634778,1819.4,1819.3,8.12584]
[1746293225938,0.00634778,1819.4,1819.3,11.24064]
[1746293226640,7.78e-06,1819.4,1819.3,22.15264]
[1746293229145,7.78e-06,1819.4,1819.3,17.15264]
[1746293232449,0.27510316,1819.9,1819.8,1.09874]
[1746293232747,1.86090316,1819.9,1819.8,4.91674]
[1746293232942,6.86090316,1819.9,1819.8,4.91674]
[1746293233144,10.57890316,1819.9,1819.8,4.91674]
[1746293233449,10.57890316,1819.9,1819.8,6.62774]
[1746293233647,5.57890316,1819.9,1819.8,6.62774]
[1746293237652,5.3038,1819.9,1819.8,6.62774]
[1746293238143,3.718,1819.9,1819.8,6.62774]
[1746293238847,3.99310316,1819.9,1819.8,4.91674]
[1746293239049,5.65720316,1819.9,1819.8,4.91674]
[1746293240056,5.65720316,1819.9,1819.8,3.818]
[1746293240249,6.75588316,1819.9,1819.8,3.818]
[1746293240450,5.65720316,1819.9,1819.8,4.91674]
[1746293245554,3.718,1819.9,1819.8,4.91674]
[1746293246150,3.718,1819.9,1819.8,8.13504]
[1746293246355,5.3688,1819.9,1819.8,8.13504]
[1746293247557,5.3688,1819.9,1819.8,6.52184]
[1746293249359,5.3688,1819.9,1819.8,8.19294]
[1746293250956,5.64390316,1819.9,1819.8,3.818]
[1746293251152,1.0988,1819.8,1819.7,3.804]
[1746293251352,4.66942675,1819.8,1819.7,3.804]
[1746293251553,3.57062675,1819.8,1819.7,3.804]
[1746293252053,8.38750838,1819.8,1819.7,3.804]
[1746293252454,7.28876838,1819.8,1819.7,3.804]
[1746293252960,8.38750838,1819.8,1819.7,3.804]
[1746293253161,1.09881,1819.7,1819.5,3.2078]
[1746293253461,4.35131,1819.7,1819.6,3.805]
[1746293253651,3.58740722,1819.7,1819.6,3.805]
[1746293254161,7.30540722,1819.7,1819.6,3.805]
[1746293255463,7.3055588,1819.7,1819.6,3.805]
[1746293255659,0.27510316,1819.6,1819.3,3.2078]
[1746293255868,4.65372293,1819.5,1819.4,3.805]
[1746293256458,3.55480293,1819.5,1819.4,4.90398]
[1746293256763,3.99310316,1819.6,1819.5,1.09892]
[1746293256964,5.93905569,1819.6,1819.5,1.09892]
[1746293257163,7.54775755,1819.6,1819.5,1.09892]
[1746293258866,7.5477036,1819.6,1819.5,1.09892]
[1746293259757,7.21290316,1819.6,1819.5,2.75302]
[1746293260459,5.3291,1819.6,1819.5,2.75302]
[1746293260667,3.718,1819.6,1819.5,10.96082]
[1746293261155,3.61795463,1820.0,1819.9,1.09868]
[1746293261359,5.42259694,1820.1,1820.0,1.09862]
[1746293261556,5.42259694,1820.1,1820.0,2.61822]
[1746293261961,5.42259694,1820.1,1820.0,6.42322]
[1746293262267,9.14059694,1820.1,1820.0,6.42322]
[1746293262664,3.718,1820.1,1820.0,6.42322]
[1746293264365,3.718,1820.1,1820.0,8.16022]
[1746293267367,3.99310316,1820.1,1820.0,6.64062]
[1746293268271,3.99310316,1820.1,1820.0,6.63962]
[1746293269361,5.49930316,1820.1,1820.0,6.63962]
[1746293278677,5.49930316,1820.1,1820.0,9.84742]
[1746293278976,3.99310316,1820.1,1820.0,9.84742]
[1746293282070,5.68610316,1820.1,1820.0,8.11042]
[1746293282271,5.68610316,1820.1,1820.0,4.90262]
[1746293284483,6.78470316,1820.1,1820.0,3.792]
[1746293285478,6.78470316,1820.1,1819.9,1.09868]
[1746293285479,0.27510316,1819.9,1819.8,8.09851]
[1746293286177,5.68520316,1819.9,1819.8,8.09851]
[1746293287578,6.01940788,1819.9,1819.8,8.09851]
[1746293288173,7.11808143,1819.9,1819.8,3.2078]
[1746293288372,9.22720143,1819.9,1819.7,3.792]
[1746293288578,4.64532857,1819.8,1819.7,4.89075]
[1746293288776,2.36538857,1819.9,1819.8,1.09874]
[1746293288979,2.36538857,1819.9,1819.8,5.79134]
[1746293289178,2.36538857,1819.9,1819.8,10.79134]
[1746293290383,2.36538857,1819.9,1819.8,5.79134]
[1746293290685,2.36538857,1819.9,1819.8,9.58334]
[1746293293886,2.64049173,1819.9,1819.8,4.89074]
[1746293294887,4.24329173,1819.9,1819.8,4.89074]
[1746293295186,4.24329173,1819.9,1819.8,1.09874]
[1746293295378,4.24329173,1819.9,1819.8,4.89074]
[1746293295782,4.24329173,1819.9,1819.8,6.63594]
[1746293295981,3.96818857,1819.9,1819.8,6.63594]
[1746293297391,2.36538857,1819.9,1819.8,6.63594]
[1746293297590,2.36538857,1819.9,1819.8,8.19424]
[1746293300689,2.36538857,1819.9,1819.8,11.40204]
[1746293305191,1.88500316,1820.2,1820.1,1.09856]
[1746293305394,1.88500316,1820.2,1820.1,8.09836]
[1746293306095,5.60300316,1820.2,1820.1,8.09836]
[1746293306888,3.99310316,1820.2,1820.1,8.09836]
[1746293307095,3.718,1820.2,1820.1,8.09836]
[1746293307493,3.718,1820.2,1820.1,9.77506]
[1746293308695,3.99310316,1820.2,1820.1,9.77506]
[1746293309195,3.718,1820.2,1820.1,9.77506]
[1746293309496,3.718,1820.2,1820.1,15.68706]
[1746293309889,0.27510316,1820.4,1820.3,1.09844]
[1746293310095,3.99310316,1820.4,1820.3,4.30624]
[1746293310591,3.99310316,1820.4,1820.3,5.91724]
[1746293312095,3.99310316,1820.4,1820.3,7.50114]
[1746293313095,7.17290316,1820.4,1820.3,5.91724]
[1746293317000,7.17290316,1820.4,1820.3,4.30624]
[1746293317298,7.17290316,1820.4,1820.3,8.08824]
[1746293319301,7.17290316,1820.4,1820.3,3.2078]
[1746293319497,7.17290316,1820.4,1820.3,3.781]
[1746293319798,7.17290316,1820.4,1820.3,4.87944]
[1746293322003,7.17290316,1820.4,1820.3,8.08724]
[1746293323500,7.17290316,1820.4,1820.3,4.87944]
[1746293325704,3.718,1820.4,1820.3,4.87944]
[1746293325905,3.718,1820.4,1820.3,8.08724]
[1746293326409,3.718,1820.4,1820.3,9.76414]
[1746293327207,5.3946,1820.4,1820.3,9.76414]
[1746293328001,3.718,1820.4,1820.3,9.76414]
[1746293333418,3.718,1820.4,1820.3,15.67614]
[1746293336415,3.99310316,1820.4,1820.3,10.21824]
[1746293336616,3.99310316,1820.4,1820.3,13.99924]
[1746293337115,5.71400316,1820.4,1820.3,15.63174]
[1746293341026,3.99310316,1820.4,1820.3,15.63174]
[1746293341519,1.5076,1820.5,1820.4,1.09838]
[1746293341724,0.27510316,1820.6,1820.5,1.09832]
[1746293341931,4.86430316,1820.6,1820.5,8.08712]
[1746293342226,8.58230316,1820.6,1820.5,8.08712]
[1746293344628,5.2146,1820.6,1820.5,8.08712]
[1746293349632,3.718,1820.6,1820.5,8.08712]
[1746293349834,3.718,1820.6,1820.5,11.09442]
[1746293350236,3.718,1820.6,1820.5,9.56692]
[1746293350626,3.99310316,1820.6,1820.5,9.56692]
[1746293350827,3.99310316,1820.6,1820.5,11.23402]
[1746293353537,5.69940316,1820.6,1820.5,8.08712]
[1746293353837,5.69940316,1820.6,1820.5,1.09832]
[1746293354131,5.69940316,1820.6,1820.5,4.86932]
[1746293354334,10.69940316,1820.6,1820.5,1.09832]
[1746293354531,10.69940316,1820.6,1820.5,4.86932]
[1746293355635,5.69940316,1820.6,1820.5,4.86932]
[1746293360345,6.02239713,1820.6,1820.5,4.86932]
[1746293360538,6.02239012,1820.6,1820.5,4.86932]
[1746293361245,6.02239012,1820.6,1820.5,1.09832]
[1746293361552,6.02239012,1820.6,1820.5,4.87032]
[1746293361845,6.02234714,1820.6,1820.5,4.87032]
[1746293363051,5.69940316,1820.6,1820.5,4.87032]
[1746293366652,5.4243,1820.6,1820.5,4.87032]
[1746293366852,3.718,1820.6,1820.5,4.87032]
[1746293367244,3.718,1820.6,1820.5,6.51982]
[1746293367549,3.718,1820.6,1820.5,9.72762]
[1746293373754,3.718,1820.6,1820.5,17.06053259]
[1746293377056,3.99310316,1820.6,1820.5,17.06053259]
[1746293378451,3.99310316,1820.6,1820.5,13.28853259]
[1746293378657,3.99310316,1820.6,1820.5,17.04953259]
[1746293379357,7.25460316,1820.6,1820.5,17.04953259]
[1746293380960,7.25460316,1820.6,1820.5,9.71662]
[1746293381559,7.25460316,1820.6,1820.5,4.30612]
[1746293381855,7.25460316,1820.6,1820.5,8.06712]
[1746293384448,7.25460316,1820.6,1820.5,9.67122]
[1746293387759,7.25460316,1820.6,1820.5,8.06712]
[1746293390763,5.52860316,1820.6,1820.5,8.06712]
[1746293391062,7.26680316,1820.6,1820.5,8.06712]
[1746293392963,7.26680316,1820.6,1820.5,9.75842]
[1746293398667,6.9917,1820.6,1820.5,9.75842]
[1746293400861,3.718,1820.6,1820.5,9.75842]
[1746293403157,3.99310316,1820.6,1820.5,8.06712]
[1746293403358,5.64920316,1820.6,1820.5,8.06712]
[1746293404971,5.64920316,1820.6,1820.5,15.40003259]
[1746293406669,5.64920316,1820.6,1820.5,17.08203259]
[1746293407972,5.64920316,1820.6,1820.5,15.40003259]
[1746293408568,5.64920316,1820.6,1820.5,4.30612]
[1746293408772,5.64920316,1820.6,1820.5,8.05512]
[1746293409770,5.64920316,1820.6,1820.5,4.30612]
[1746293409971,5.64920316,1820.6,1820.5,8.05512]
[1746293411269,5.64920316,1820.6,1820.5,1.09832]
[1746293411570,5.97228366,1820.6,1820.5,4.84732]
[1746293412873,5.97203841,1820.6,1820.5,4.84732]
[1746293413267,5.97203841,1820.6,1820.5,1.09832]
[1746293413468,0.27510316,1820.5,1820.3,7.33291259]
[1746293413675,1.82193525,1820.4,1820.3,1.09843]
[1746293413866,3.38363525,1820.4,1820.3,1.09843]
[1746293414067,13.50533841,1820.4,1820.2,7.33291259]
[1746293414266,13.50533841,1820.4,1820.2,8.43141259]
[1746293414267,2.00010316,1820.3,1820.2,8.43141259]
[1746293414969,1.725,1820.3,1820.2,11.63921259]
[1746293415277,5.443,1820.3,1820.2,13.28011259]
[1746293417972,5.443,1820.3,1820.2,5.9472]
[1746293418473,5.443,1820.3,1820.2,4.3063]
[1746293418680,5.443,1820.3,1820.2,3.2078]
[1746293418869,5.71810316,1820.3,1820.2,3.2078]
[1746293419071,5.71810316,1820.3,1820.1,1.09852]
[1746293419273,1.6792,1820.2,1820.1,1.09852]
[1746293419478,1.95430316,1820.2,1820.1,1.09852]
[1746293419867,1.09856,1820.1,1820.0,7.33291259]
[1746293420072,8.4721841,1820.1,1820.0,7.33291259]
[1746293420267,15.1466841,1820.1,1820.0,7.33291259]
[1746293420670,14.0481241,1820.1,1820.0,7.33291259]
[1746293420978,14.0481241,1820.1,1819.9,15.834957]
[1746293421279,1.6745,1820.0,1819.9,4.84867]
[1746293421479,1.94960316,1820.0,1819.9,4.84867]
[1746293421675,1.6745,1820.0,1819.9,6.54987]
[1746293421978,1.6745,1820.0,1819.9,4.84867]
[1746293422167,5.3925,1820.0,1819.9,4.84867]
[1746293423070,5.66760316,1820.0,1819.9,3.75]
[1746293423269,6.76622316,1820.0,1819.9,3.75]
[1746293423577,5.66760316,1820.0,1819.9,4.84868]
[1746293424780,5.66760316,1820.0,1819.9,6.54158]
[1746293427582,5.66760316,1820.0,1819.9,4.84868]
[1746293433684,5.66760316,1820.0,1819.9,3.75]
[1746293433884,8.87540316,1820.0,1819.9,3.75]
[1746293434086,9.97402316,1820.0,1819.9,3.75]
[1746293434388,8.87540316,1820.0,1819.9,4.84868]
[1746293436185,9.97402316,1820.0,1819.9,1.09868]
[1746293436386,10.29578146,1820.0,1819.9,1.09868]
[1746293436887,10.29577743,1820.0,1819.9,1.09868]
[1746293438488,7.08797743,1820.0,1819.9,1.09868]
[1746293438690,7.08807356,1820.0,1819.9,1.09868]
[1746293439589,1.09868,1819.9,1819.8,4.84969]
[1746293439790,2.79858,1819.9,1819.8,4.84969]
[1746293440288,6.51658,1819.9,1819.8,1.09869]
[1746293440490,5.4179,1819.9,1819.8,1.09869]
[1746293442591,6.51658,1819.9,1819.8,1.09869]
[1746293444390,3.718,1819.9,1819.8,1.09869]
[1746293444590,3.718,1819.9,1819.8,2.71399]
[1746293446491,3.718,1819.9,1819.8,5.92179]
[1746293446694,3.718,1819.9,1819.8,2.71399]
[1746293450295,3.718,1819.9,1819.8,5.92179]
[1746293459101,3.718,1819.9,1819.8,2.71399]
[1746293459503,3.718,1819.9,1819.8,5.92179]
[1746293463308,0.27510316,1820.1,1820.0,1.09862]
[1746293463510,0.27510316,1820.1,1820.0,8.04642]
[1746293463905,0.27510316,1820.1,1820.0,10.98382]
[1746293464209,3.99310316,1820.1,1820.0,10.98382]
[1746293466509,3.718,1820.1,1820.0,10.98382]
[1746293466709,1.15129,1820.1,1820.0,10.98382]
[1746293467207,0.27510316,1820.3,1820.2,1.0985]
[1746293468107,3.99310316,1820.3,1820.2,1.0985]
[1746293468511,3.99310316,1820.3,1820.2,4.3063]
[1746293469112,3.718,1820.3,1820.2,4.3063]
[1746293474213,3.718,1820.3,1820.2,10.2183]
[1746293474807,8.62740316,1820.3,1820.2,10.2183]
[1746293475014,8.62740316,1820.3,1820.2,13.9463]
[1746293477320,13.62740316,1820.3,1820.2,3.728]
[1746293477520,13.62740316,1820.3,1820.2,4.8265]
[1746293478314,8.62740316,1820.3,1820.2,4.8265]
[1746293478519,13.62740316,1820.3,1820.2,4.8265]
[1746293478719,8.62740316,1820.3,1820.2,4.8265]
[1746293480716,13.94992735,1820.3,1820.1,1.09856]
[1746293480919,1.95552419,1820.2,1820.1,1.09856]
[1746293481222,5.67352419,1820.2,1820.1,1.09856]
[1746293481428,10.67352419,1820.2,1820.1,1.09856]
[1746293482218,14.15642735,1820.2,1820.0,3.728]
[1746293482416,2.00973803,1820.1,1820.0,4.82662]
[1746293482821,7.28484119,1820.1,1820.0,4.82662]
[1746293483223,12.10140119,1820.1,1820.0,1.09862]
[1746293483424,11.00284119,1820.1,1820.0,1.09862]
[1746293484021,11.00286536,1820.1,1820.0,1.09862]
[1746293484223,12.10142536,1820.1,1820.0,1.09862]
[1746293484522,1.09863,1820.0,1819.8,3.728]
[1746293484820,1.6193,1819.9,1819.8,4.82674]
[1746293485223,5.3373,1819.9,1819.8,4.82674]
[1746293487721,6.866,1819.9,1819.8,4.82674]
[1746293491329,8.23978316,1819.9,1819.8,3.728]
[1746293491632,8.56182069,1819.9,1819.8,3.728]
[1746293492832,8.56168086,1819.9,1819.8,4.82674]
[1746293493130,8.56168086,1819.9,1819.8,3.728]
[1746293493425,1.09874,1819.8,1819.7,1.09876]
[1746293493630,2.68604,1819.8,1819.7,1.09876]
[1746293494133,6.40404,1819.8,1819.7,1.09876]
[1746293494434,1.09882,1819.7,1819.6,1.09882]
[1746293494731,4.53162316,1819.7,1819.6,1.09882]
[1746293495126,8.24962316,1819.7,1819.6,1.09882]
[1746293495534,7.15080316,1819.7,1819.6,1.09882]
[1746293498829,8.24960316,1819.7,1819.5,4.82788]
[1746293499024,3.1737,1819.6,1819.5,4.82787]
[1746293500141,7.99056,1819.6,1819.5,4.82787]
[1746293500441,6.8917,1819.6,1819.5,4.82787]
[1746293501441,8.26566316,1819.6,1819.5,3.729]
[1746293501744,7.16680316,1819.6,1819.5,4.82792]
[1746293504947,8.26566316,1819.6,1819.5,4.82792]
[1746293505240,7.16680316,1819.6,1819.5,4.82792]
[1746293506533,7.16680316,1819.6,1819.5,6.53222]
[1746293506943,7.48909129,1819.6,1819.5,6.53222]
[1746293507245,7.16680316,1819.6,1819.5,6.53222]
[1746293507433,7.4892113,1819.6,1819.5,6.53222]
[1746293507638,10.37460316,1819.6,1819.5,6.53222]
[1746293508447,10.69707776,1819.6,1819.5,6.53222]
[1746293509448,7.48927776,1819.6,1819.5,6.53222]
[1746293509649,8.58813776,1819.6,1819.5,6.53222]
[1746293510647,8.58848383,1819.6,1819.5,6.53222]
[1746293510849,7.48962383,1819.6,1819.5,6.53222]
[1746293511053,3.718,1819.6,1819.5,6.53222]
[1746293517347,3.718,1819.6,1819.5,9.74002]
[1746293520755,2.54131,1819.6,1819.5,14.74002]
[1746293520956,1.05082,1819.6,1819.5,14.74002]
[1746293521159,0.27510316,1819.9,1819.8,1.09874]
[1746293521458,0.27510316,1819.9,1819.8,4.81774]
[1746293521850,0.27510316,1819.9,1819.8,6.56154]
[1746293522052,3.99310316,1819.9,1819.8,6.56154]
[1746293525859,5.65730316,1819.9,1819.8,4.81774]
[1746293526063,14.18793002,1819.9,1819.6,9.631]
[1746293526360,1.98703756,1819.8,1819.7,1.09878]
[1746293526557,2.26214072,1819.8,1819.7,1.09878]
[1746293527156,5.65730316,1819.8,1819.7,1.09878]
[1746293527356,5.98016029,1819.8,1819.7,1.09878]
[1746293527557,5.98016029,1819.8,1819.7,2.80358]
[1746293527959,7.07889824,1819.8,1819.7,1.09878]
[1746293528160,5.98015386,1819.8,1819.7,1.09878]
[1746293528361,5.98014712,1819.8,1819.7,1.09878]
[1746293528662,5.98012913,1819.8,1819.7,1.09878]
[1746293528863,1.09881,1819.7,1819.6,1.09882]
[1746293529058,13.20433375,1819.7,1819.6,1.09882]
[1746293529264,13.20432715,1819.7,1819.6,1.09882]
[1746293529465,13.20433429,1819.7,1819.6,1.09882]
[1746293530167,13.20429254,1819.7,1819.6,1.09882]
[1746293530464,13.20424006,1819.7,1819.6,1.09882]
[1746293530762,12.88150316,1819.7,1819.6,1.09882]
[1746293531163,13.20423538,1819.7,1819.6,1.09882]
[1746293531364,12.10543538,1819.7,1819.6,1.09882]
[1746293531562,13.20423538,1819.7,1819.6,1.09882]
[1746293531765,13.20424815,1819.7,1819.6,1.09882]
[1746293531968,13.20425867,1819.7,1819.6,1.09882]
[1746293532169,13.20424702,1819.7,1819.6,1.09882]
[1746293532372,12.10544702,1819.7,1819.5,4.81788]
[1746293532562,1.95474386,1819.6,1819.5,4.81788]
[1746293532863,1.632,1819.6,1819.5,4.81788]
[1746293533066,5.67272973,1819.6,1819.5,4.81788]
[1746293533264,5.62510316,1819.6,1819.2,3.708]
[1746293533467,1.37414316,1819.3,1819.2,4.80705]
[1746293533671,1.69675592,1819.3,1819.2,4.80705]
[1746293533964,6.00264316,1819.3,1819.2,4.80705]
[1746293534263,10.04324577,1819.3,1819.2,4.80705]
[1746293534470,10.04324231,1819.3,1819.2,4.80705]
[1746293535169,9.72064316,1819.3,1819.2,4.80705]
[1746293535365,10.04328754,1819.3,1819.2,4.80705]
[1746293535565,9.72064316,1819.3,1819.2,4.80705]
[1746293535764,10.04329481,1819.3,1819.2,4.80705]
[1746293535968,8.62160316,1819.3,1819.2,4.80705]
[1746293536165,10.04316532,1819.3,1819.2,4.80705]
[1746293536362,10.04315214,1819.3,1819.2,4.80705]
[1746293536563,8.94410887,1819.3,1819.2,4.80705]
[1746293536762,8.94411271,1819.3,1819.2,4.80705]
[1746293536968,8.3465,1819.3,1819.2,4.80705]
[1746293537168,3.718,1819.3,1819.2,4.80705]
[1746293537570,3.718,1819.3,1819.2,6.54605]
[1746293546670,3.99310316,1819.3,1819.2,6.54605]
[1746293548883,5.69780316,1819.3,1819.2,6.54605]
[1746293550070,5.69780316,1819.3,1819.2,3.708]
[1746293550276,6.02035806,1819.3,1819.2,4.8071]
[1746293551488,6.02036476,1819.3,1819.2,4.8071]
[1746293553984,7.11940476,1819.3,1819.2,4.8071]
[1746293554185,6.02036476,1819.3,1819.2,4.8071]
[1746293554985,7.11940476,1819.3,1819.2,4.8071]
[1746293555184,7.11976232,1819.3,1819.2,4.8071]
[1746293555486,6.02072232,1819.3,1819.2,4.8071]
[1746293556286,6.02072232,1819.3,1819.2,6.5359]
[1746293556886,6.02080257,1819.3,1819.2,6.5359]
[1746293557886,7.11984257,1819.3,1819.2,6.5359]
[1746293558586,7.11984257,1819.3,1819.2,3.708]
[1746293558978,7.11984257,1819.3,1819.2,4.8071]
[1746293559183,7.11997898,1819.3,1819.2,4.8071]
[1746293560893,7.11997898,1819.3,1819.2,3.708]
[1746293561795,1.0991,1819.2,1819.1,1.09912]
[1746293561995,6.18953582,1819.2,1819.1,1.09912]
[1746293562293,9.9077094,1819.2,1819.1,1.09912]
[1746293563095,8.8086094,1819.2,1819.1,1.09912]
[1746293563697,9.9077094,1819.2,1819.1,1.09912]